bitfinex/quotes_ETHUSD_20251122
["timestamp","ask_amount","ask_price","bid_price","bid_amount"]
[1763813823269,0.405504,2723.3,2722.3,0.007]
[1763813823270,0.863904,2722.7,2722.3,0.007]
[1763813823469,0.4584,2722.4,2722.3,0.001]
[1763813823681,0.4584,2722.4,2722.3,0.126]
[1763813823843,0.9253,2722.4,2722.3,0.001]
[1763813825271,0.9253,2722.4,2722.3,0.126]
[1763813825641,0.1592,2722.8,2722.3,0.126]
[1763813825838,0.496,2722.7,2722.3,0.126]
[1763813826553,0.496,2722.7,2722.3,0.001]
[1763813826975,0.496,2722.7,2722.4,0.125]
[1763813827173,0.6842,2723.1,2722.6,0.0669]
[1763813827491,0.1882,2723.1,2722.6,0.0669]
[1763813827696,0.1882,2723.1,2722.7,0.125]
[1763813827980,0.496,2723.5,2722.7,0.125]
[1763813828342,0.1915,2723.9,2722.7,0.125]
[1763813828343,0.496,2723.8,2722.9,0.90699264]
[1763813828888,0.496,2723.8,2723.0,7.34484024]
[1763813829470,0.496,2723.8,2722.9,4.5794837]
[1763813829673,0.03651382,2723.7,2723.0,0.125]
[1763813829873,0.496,2723.8,2723.0,0.125]
[1763813830101,0.496,2723.7,2723.0,0.125]
[1763813830271,0.4812,2723.1,2723.0,0.125]
[1763813830901,0.9772,2723.1,2722.3,0.001]
[1763813831099,0.496,2723.0,2722.4,0.125]
[1763813831615,0.1882,2722.9,2722.4,0.125]
[1763813831915,0.1882,2722.9,2722.3,0.001]
[1763813832209,0.6842,2722.9,2722.4,0.125]
[1763813832702,0.496,2722.8,2722.4,0.125]
[1763813833065,0.496,2722.8,2722.4,3.79820365]
[1763813833268,0.1882,2722.9,2722.4,3.79820365]
[1763813833481,0.6842,2722.9,2722.4,3.79820365]
[1763813834400,0.6842,2722.9,2722.4,0.125]
[1763813834594,0.6842,2722.9,2722.4,3.79818998]
[1763813834795,0.6862,2722.9,2722.4,3.79818998]
[1763813835406,0.496,2722.8,2722.4,0.125]
[1763813835772,0.496,2722.8,2722.4,3.79819182]
[1763813835972,0.496,2722.8,2722.4,3.79822279]
[1763813836510,0.002,2722.9,2722.7,0.0669]
[1763813836709,0.002,2722.9,2722.8,0.125]
[1763813837008,0.1902,2722.9,2722.8,0.125]
[1763813837209,1.1674,2722.9,2722.3,0.001]
[1763813837405,1.1674,2722.9,2722.4,0.125]
[1763813837583,0.1902,2722.9,2722.4,0.125]
[1763813837786,0.6862,2722.9,2722.5,0.125]
[1763813838313,0.496,2722.8,2722.5,0.125]
[1763813838473,0.1902,2722.9,2722.5,0.125]
[1763813838474,0.002,2722.9,2722.5,0.125]
[1763813838674,0.002,2722.9,2722.7,0.0669]
[1763813839081,0.002,2722.9,2722.5,0.125]
[1763813839286,0.002,2722.9,2722.5,3.79809105]
[1763813840676,0.4812,2722.6,2722.3,0.001]
[1763813840905,0.4812,2722.4,2722.3,0.001]
[1763813841106,0.4812,2722.4,2722.3,0.126]
[1763813841311,0.9772,2722.4,2722.3,0.126]
[1763813843978,0.002,2722.9,2722.3,3.86624282]
[1763813844181,0.496,2722.8,2722.3,0.126]
[1763813844477,0.002,2722.9,2722.4,0.125]
[1763813845086,0.002,2722.9,2722.4,0.1919]
[1763813845288,0.002,2722.9,2722.5,7.34618916]
[1763813845489,0.002,2722.9,2722.5,7.41308916]
[1763813846220,0.002,2722.9,2722.8,0.0669]
[1763813846422,0.002,2722.9,2722.8,0.1919]
[1763813847425,0.002,2722.9,2722.8,3.86458987]
[1763813848504,0.002,2722.9,2722.8,3.67268987]
[1763813848707,0.002,2722.9,2722.8,3.79768987]
[1763813848928,0.002,2722.9,2722.8,3.67268987]
[1763813849135,0.002,2722.9,2722.8,3.79768987]
[1763813849429,0.002,2722.9,2722.8,0.125]
[1763813849792,0.002,2722.9,2722.6,3.67295967]
[1763813849989,0.002,2722.9,2722.7,0.125]
[1763813850213,0.002,2722.9,2722.8,0.125]
[1763813850422,1.1674,2722.9,2722.3,0.001]
[1763813850628,0.4812,2722.6,2722.4,0.125]
[1763813851025,0.4812,2722.5,2722.4,0.125]
[1763813851532,0.9772,2722.5,2722.4,0.125]
[1763813852393,0.9772,2722.5,2722.3,0.001]
[1763813852601,0.9772,2722.4,2722.3,0.001]
[1763813852837,0.9772,2722.4,2722.3,0.126]
[1763813854135,0.6862,2722.9,2722.3,0.126]
[1763813854498,0.496,2722.8,2722.3,0.126]
[1763813856839,0.4998,2722.4,2722.3,0.126]
[1763813857342,0.9616,2722.4,2722.3,0.126]
[1763813858343,0.4618,2722.7,2722.3,0.126]
[1763813858710,0.4618,2722.7,2722.3,3.79935871]
[1763813859139,0.4618,2722.7,2722.3,0.126]
[1763813859456,0.4998,2722.4,2722.3,0.126]
[1763813860911,0.4998,2722.4,2722.3,3.79936443]
[1763813861213,0.4618,2722.7,2722.3,3.79936443]
[1763813861405,0.4618,2722.7,2722.3,0.001]
[1763813861611,0.4998,2722.4,2722.3,0.001]
[1763813861944,0.4998,2722.4,2722.3,0.126]
[1763813862231,0.9616,2722.4,2722.3,0.126]
[1763813862431,0.4618,2722.8,2722.3,0.126]
[1763813863556,0.1902,2722.9,2722.3,3.79928503]
[1763813863853,0.002,2722.9,2722.8,0.0669]
[1763813864027,0.002,2722.9,2722.8,0.2588]
[1763813864734,0.002,2722.9,2722.8,0.539304]
[1763813864935,0.002,2722.9,2722.8,0.664304]
[1763813865553,0.002,2722.9,2722.8,5.24398651]
[1763813866741,0.002,2723.2,2722.9,1.31249664]
[1763813866936,0.002,2723.2,2723.1,6.37184974]
[1763813867315,0.002,2723.2,2723.1,6.43874974]
[1763813867511,0.002,2723.2,2723.1,10.111035]
[1763813869452,0.002,2723.5,2723.2,0.405504]
[1763813869622,0.002,2723.5,2723.4,5.05127737]
[1763813870048,0.002,2723.5,2723.4,5.11817737]
[1763813870261,0.002,2723.8,2723.5,0.405504]
[1763813870548,0.002,2723.8,2723.7,6.37184974]
[1763813870727,0.002,2723.8,2723.7,6.49684974]
[1763813870927,0.002,2724.6,2723.8,1.31249664]
[1763813871152,0.002,2724.6,2724.1,4.78194166]
[1763813871350,0.002,2724.6,2724.1,6.2194383]
[1763813871649,0.002,2724.6,2724.1,6.2863383]
[1763813871830,0.002,2724.6,2724.1,9.95727549]
[1763813872155,0.002,2724.6,2724.1,9.76537549]
[1763813872453,0.002,2724.6,2724.1,9.95727549]
[1763813873655,0.4638,2724.6,2724.1,3.67093719]
[1763813873832,0.4638,2724.6,2723.9,4.71504166]
[1763813873833,0.4638,2724.6,2724.0,3.67107085]
[1763813874333,0.4998,2724.1,2723.9,4.71504166]
[1763813874658,0.4998,2724.0,2723.8,0.90699264]
[1763813874858,0.4998,2723.9,2723.6,3.67156067]
[1763813875022,0.4998,2723.8,2723.7,0.125]
[1763813875956,0.4998,2723.8,2723.6,0.90699264]
[1763813875957,0.9616,2723.8,2723.6,0.90699264]
[1763813876161,0.9616,2723.8,2723.4,3.67178145]
[1763813876162,0.4998,2723.7,2723.4,3.67182726]
[1763813876347,0.4998,2723.6,2723.5,0.125]
[1763813876541,0.4998,2723.6,2723.5,1.03199264]
[1763813877447,0.4618,2723.7,2723.5,1.03199264]
[1763813877756,0.4618,2724.1,2723.5,1.03199264]
[1763813877961,0.4618,2724.1,2723.5,3.79673415]
[1763813878363,0.4618,2724.1,2723.5,0.125]
[1763813878538,0.4998,2723.6,2723.5,0.125]
[1763813878763,0.4998,2723.6,2723.4,4.57884304]
[1763813879126,0.4998,2723.6,2723.0,4.71504166]
[1763813879127,0.4998,2723.5,2723.0,4.71504166]
[1763813879338,0.4998,2723.4,2723.1,0.125]
[1763813879544,0.4998,2723.4,2723.1,0.90699264]
[1763813879744,0.4618,2723.3,2723.2,0.125]
[1763813880260,0.9616,2723.3,2722.6,4.71504166]
[1763813880463,0.9616,2723.3,2722.3,0.001]
[1763813880464,0.4998,2722.6,2722.3,3.6743107]
[1763813880665,0.4998,2722.6,2722.4,0.125]
[1763813880961,0.4618,2723.2,2722.5,0.0669]
[1763813880962,0.6481,2723.2,2722.5,0.0669]
[1763813881124,0.1477,2724.0,2722.5,4.8855726]
[1763813881125,0.4618,2723.5,2722.5,4.8855726]
[1763813881334,0.4618,2723.5,2722.6,0.90699264]
[1763813881560,0.4618,2723.5,2722.7,0.125]
[1763813881764,0.4618,2723.5,2722.8,0.125]
[1763813882062,0.4618,2723.5,2722.3,0.001]
[1763813882063,0.6861,2722.7,2722.3,0.001]
[1763813882301,0.4998,2722.4,2722.3,0.001]
[1763813882600,0.1863,2722.7,2722.3,0.126]
[1763813882801,0.1863,2722.8,2722.3,0.1929]
[1763813883165,0.6481,2722.8,2722.3,0.1929]
[1763813883482,0.1863,2722.8,2722.4,0.03673229]
[1763813883687,0.1863,2722.8,2722.3,0.1929]
[1763813883688,0.1863,2722.8,2722.3,0.126]
[1763813884488,0.1863,2722.8,2722.4,3.6732295]
[1763813884692,0.6481,2723.1,2722.4,3.6732295]
[1763813884898,0.6481,2723.1,2722.6,4.71504166]
[1763813885066,0.1863,2723.3,2722.7,0.125]
[1763813885673,0.4526,2723.8,2723.0,4.71504166]
[1763813885968,0.4526,2723.8,2723.1,0.125]
[1763813886805,0.4526,2723.8,2723.1,3.79723951]
[1763813887004,0.4526,2723.8,2723.1,7.46952477]
[1763813887203,0.6003,2724.0,2723.1,7.46952477]
[1763813887778,0.6003,2724.0,2723.4,4.71504166]
[1763813888305,0.4526,2723.9,2723.5,0.125]
[1763813888786,0.1477,2724.0,2723.6,3.6716111]
[1763813889203,0.1477,2724.0,2723.7,0.125]
[1763813889499,0.002,2724.2,2723.7,0.125]
[1763813890914,0.002,2724.2,2723.7,3.79642994]
[1763813891481,0.002,2724.2,2723.7,7.46790624]
[1763813891705,0.002,2724.2,2723.7,7.53480624]
[1763813892017,0.6427,2723.8,2723.5,0.90699264]
[1763813892210,0.6427,2723.8,2723.6,0.125]
[1763813892781,0.6427,2723.8,2723.7,0.125]
[1763813893133,1.0953,2723.8,2723.7,0.125]
[1763813895682,1.0953,2723.8,2722.8,3.67267001]
[1763813895984,0.4538,2723.4,2722.7,8.25260883]
[1763813896184,0.4538,2723.4,2722.8,0.125]
[1763813896481,0.4538,2723.4,2722.7,4.57978407]
[1763813896482,0.4526,2723.3,2722.9,0.125]
[1763813896888,0.1889,2723.8,2722.9,0.125]
[1763813897083,0.4526,2723.5,2722.9,0.125]
[1763813897321,0.4526,2723.5,2722.9,1.03199264]
[1763813897701,0.4526,2723.5,2722.9,0.125]
[1763813898418,0.4526,2723.5,2722.9,3.79755348]
[1763813898930,0.4526,2723.5,2722.9,0.125]
[1763813899097,0.4526,2723.5,2723.0,0.125]
[1763813899617,0.4538,2723.1,2723.0,0.125]
[1763813900013,0.4526,2723.7,2723.0,4.90694166]
[1763813901376,0.4538,2723.1,2722.3,0.001]
[1763813901524,0.4538,2723.1,2722.4,12.06150066]
[1763813901705,0.9064,2723.1,2722.5,0.125]
[1763813901902,0.4538,2723.1,2722.5,1.03199264]
[1763813902111,0.4526,2723.4,2722.5,1.03199264]
[1763813902431,0.4526,2723.4,2722.9,0.001]
[1763813902631,0.4526,2723.4,2723.0,0.125]
[1763813903012,0.4538,2723.1,2723.0,0.125]
[1763813903208,0.4538,2723.1,2722.9,0.001]
[1763813903406,0.9064,2723.0,2722.9,0.001]
[1763813903708,0.9064,2723.0,2722.9,0.126]
[1763813903909,0.9064,2723.0,2722.9,0.001]
[1763813904334,0.9064,2723.0,2722.9,0.126]
[1763813905143,0.9064,2723.0,2722.9,0.001]
[1763813905464,0.9064,2723.0,2722.9,0.126]
[1763813905667,0.9064,2723.0,2722.9,0.001]
[1763813905865,0.9064,2723.0,2722.9,0.126]
[1763813906240,0.9064,2723.0,2722.9,0.001]
[1763813906568,0.9064,2723.0,2722.9,0.126]
[1763813907146,1.311904,2723.0,2722.9,0.001]
[1763813907549,0.405504,2722.9,2722.6,0.126]
[1763813907751,0.6427,2722.7,2722.6,0.126]
[1763813908169,1.0953,2722.7,2722.6,0.126]
[1763813908850,0.6427,2722.7,2722.6,0.001]
[1763813909054,1.0953,2722.7,2722.6,0.126]
[1763813909571,0.1889,2722.9,2722.6,0.126]
[1763813909775,0.4526,2723.1,2722.6,0.126]
[1763813910085,0.4526,2723.1,2722.6,3.7989403]
[1763813910295,0.4526,2723.5,2722.6,7.53879997]
[1763813910590,0.4526,2723.5,2722.7,0.90699264]
[1763813911378,0.4526,2723.5,2722.8,4.71504166]
[1763813911555,0.1909,2723.8,2722.9,7.34499837]
[1763813911768,0.6435,2723.8,2722.9,7.34499837]
[1763813912082,0.6435,2723.8,2722.9,7.41189837]
[1763813912299,0.6435,2723.8,2723.2,4.71504166]
[1763813912300,0.002,2723.8,2723.2,4.71504166]
[1763813912573,0.002,2723.8,2723.7,0.0669]
[1763813913882,0.002,2723.8,2723.7,0.1919]
[1763813914185,0.9084,2723.8,2722.9,0.90699264]
[1763813914376,0.4546,2723.8,2723.0,0.125]
[1763813914686,0.4526,2723.7,2723.0,0.125]
[1763813914857,0.002,2723.8,2723.0,0.1919]
[1763813915180,0.002,2723.8,2723.0,0.0669]
[1763813915384,0.002,2723.8,2723.1,0.125]
[1763813915887,0.002,2723.8,2722.9,3.67255499]
[1763813915888,0.4511,2723.7,2722.9,3.67255499]
[1763813916189,0.002,2723.8,2723.2,4.71504166]
[1763813917162,0.002,2723.8,2723.7,4.78194166]
[1763813917370,0.002,2723.8,2723.7,4.84004166]
[1763813917575,0.002,2723.8,2723.7,0.125]
[1763813917784,0.9834,2723.8,2723.7,0.125]
[1763813918662,0.4935,2723.8,2723.7,0.125]
[1763813918863,0.002,2723.8,2723.7,0.125]
[1763813919472,0.002,2723.8,2723.7,0.1919]
[1763813921081,0.002,2723.8,2723.7,3.8633763]
[1763813921399,0.002,2723.8,2723.7,0.125]
[1763813921599,0.9834,2723.8,2723.7,0.125]
[1763813922800,0.9834,2723.8,2723.0,0.90699264]
[1763813923103,0.4899,2723.7,2723.0,4.57941276]
[1763813923292,0.4899,2723.7,2723.1,0.125]
[1763813923605,0.4899,2723.7,2723.0,4.57941276]
[1763813923606,0.03651382,2723.6,2723.0,0.90699264]
[1763813923937,0.4899,2723.7,2723.1,0.125]
[1763813924200,0.002,2723.8,2722.9,2.3364135]
[1763813924201,0.4915,2723.1,2722.9,2.3364135]
[1763813924386,0.4915,2723.0,2722.9,0.001]
[1763813924770,0.4915,2723.0,2722.9,0.126]
[1763813924970,0.4899,2723.2,2722.9,0.126]
[1763813925884,0.4915,2723.0,2722.9,0.126]
[1763813926204,0.4899,2723.2,2722.9,0.126]
[1763813927603,0.4899,2723.5,2722.9,3.79854058]
[1763813927912,1.03567,2723.8,2722.9,12.18613723]
[1763813928069,0.4919,2723.8,2722.9,12.25303723]
[1763813930005,0.4919,2723.8,2723.0,0.97389264]
[1763813930894,0.002,2723.8,2723.1,0.03672285]
[1763813931092,0.002,2723.8,2723.3,4.71504166]
[1763813931297,0.002,2723.8,2723.7,0.0669]
[1763813931777,0.4935,2723.8,2723.4,0.125]
[1763813931983,0.4935,2723.8,2723.5,3.67174591]
[1763813932182,0.002,2723.8,2723.5,7.34349182]
[1763813932384,0.002,2723.8,2723.7,0.0669]
[1763813934316,0.002,2723.8,2723.7,3.7383763]
[1763813934522,0.002,2723.8,2723.7,0.0669]
[1763813934716,0.4935,2723.8,2723.4,0.90699264]
[1763813934903,0.4935,2723.8,2723.3,0.90699264]
[1763813935113,0.4935,2723.8,2723.5,0.125]
[1763813935505,0.002,2723.8,2723.7,0.0669]
[1763813936020,0.002,2723.8,2723.3,5.90104655]
[1763813936219,0.002,2723.8,2723.7,3.7383763]
[1763813940319,0.002,2723.8,2723.7,3.8052763]
[1763813940925,0.002,2723.8,2723.7,3.7383763]
[1763813942225,0.002,2723.8,2723.7,3.8052763]
[1763813942845,0.002,2723.8,2723.7,3.7383763]
[1763813944444,0.002,2723.8,2723.7,3.8633763]
[1763813945040,0.002,2723.8,2723.7,3.9302763]
[1763813945246,0.002,2723.8,2723.7,3.96699106]
[1763813945633,0.002,2723.8,2723.7,4.8739837]
[1763813945807,0.002,2723.8,2723.7,10.27354161]
[1763813946145,0.002,2723.8,2723.7,10.23682685]
[1763813946315,0.002,2723.8,2723.7,12.38034035]
[1763813946521,0.002,2723.8,2723.7,7.57818644]
[1763813946721,0.002,2723.8,2723.7,6.98078244]
[1763813946932,0.002,2723.8,2723.7,7.17268244]
[1763813947116,0.002,2723.8,2723.7,12.57224035]
[1763813949348,1e-08,2724.3,2724.2,4.345404]
[1763813949652,0.4604,2725.8,2724.2,4.345404]
[1763813949653,0.4624,2726.2,2724.8,4.341404]
[1763813949813,0.4624,2726.2,2725.1,6.43235055]
[1763813950146,0.1876,2725.9,2725.1,0.90699264]
[1763813950312,0.4712,2725.2,2725.1,0.125]
[1763813950511,0.002,2725.2,2725.1,0.125]
[1763813950711,0.002,2725.2,2725.1,0.1879]
[1763813951135,0.002,2725.2,2725.1,3.8574901]
[1763813951339,0.002,2725.2,2725.1,4.82738274]
[1763813952260,0.002,2725.2,2725.1,5.23288674]
[1763813953022,0.002,2725.2,2725.1,5.16998674]
[1763813953262,0.002,2725.2,2725.1,5.23288674]
[1763813953616,0.002,2725.2,2725.1,5.04498674]
[1763813953828,0.002,2725.2,2725.1,5.16998674]
[1763813954016,0.002,2725.2,2725.1,5.10788674]
[1763813954218,0.002,2725.2,2725.1,5.23288674]
[1763813955115,0.002,2725.2,2725.1,5.10788674]
[1763813955347,0.002,2725.2,2725.1,5.26958264]
[1763813955850,0.002,2725.2,2725.1,4.57658274]
[1763813956035,0.002,2725.2,2725.1,4.70158274]
[1763813956549,0.4712,2725.2,2725.1,4.70158274]
[1763813957144,0.9316,2725.2,2724.5,3.67039823]
[1763813957319,0.4692,2725.1,2724.6,0.125]
[1763813957639,0.9296,2725.1,2724.6,1.03199264]
[1763813958040,0.6568,2724.7,2724.2,3.67080243]
[1763813958349,0.4692,2724.3,2724.2,4.57779507]
[1763813958522,0.4692,2724.3,2724.2,4.70279507]
[1763813958844,0.9296,2724.3,2724.2,0.125]
[1763813959553,0.1876,2724.7,2724.2,3.79580243]
[1763813959759,0.648,2724.9,2724.3,0.90699264]
[1763813959917,0.1876,2724.9,2724.3,0.90699264]
[1763813960342,0.648,2724.9,2724.4,0.125]
[1763813960747,0.4604,2724.8,2724.4,0.125]
[1763813960930,0.1876,2724.9,2724.5,0.90699264]
[1763813961266,0.4692,2724.6,2724.1,3.67089785]
[1763813961554,0.4692,2724.5,2724.2,0.125]
[1763813961969,0.1876,2724.9,2724.2,0.125]
[1763813962255,0.648,2724.9,2724.2,1.03199264]
[1763813962619,0.648,2724.9,2724.4,4.99405391]
[1763813962816,0.648,2724.9,2724.5,1.03199264]
[1763813963017,0.1876,2724.9,2724.5,1.03199264]
[1763813963230,0.648,2724.9,2724.6,7.34052704]
[1763813963657,0.4624,2725.2,2724.7,0.94369392]
[1763813963820,0.4624,2725.2,2724.8,0.125]
[1763813964857,0.002,2725.2,2724.8,0.125]
[1763813965022,0.002,2725.2,2724.9,0.90699264]
[1763813965226,0.002,2725.2,2725.1,3.6695901]
[1763813965857,0.9316,2725.2,2724.5,8.2477891]
[1763813966070,0.1876,2724.8,2724.6,0.125]
[1763813966441,0.648,2724.8,2724.7,0.125]
[1763813966642,0.4692,2724.6,2724.1,0.90699264]
[1763813966836,0.4692,2724.6,2724.2,0.125]
[1763813967071,0.9296,2724.6,2724.3,0.125]
[1763813967432,0.9296,2724.6,2724.5,0.90699264]
[1763813967765,0.1876,2724.8,2724.5,1.03199264]
[1763813967977,0.002,2725.2,2724.5,1.03199264]
[1763813968159,0.002,2725.2,2724.6,0.03670263]
[1763813968870,0.002,2725.2,2724.9,0.90699264]
[1763813969171,0.002,2725.2,2724.5,1.50039664]
[1763813969172,0.002,2725.2,2725.0,0.125]
[1763813969378,0.4604,2725.1,2724.5,0.90699264]
[1763813969567,0.4604,2725.1,2724.8,0.90699264]
[1763813969876,0.002,2725.2,2724.8,0.90699264]
[1763813970079,0.6568,2724.9,2724.8,0.90699264]
[1763813970245,0.6568,2724.9,2724.8,1.03199264]
[1763813970454,0.002,2725.2,2724.8,1.03199264]
[1763813970777,0.4624,2725.2,2724.8,1.03199264]
[1763813971670,0.6568,2724.9,2724.3,0.90699264]
[1763813971892,0.6568,2724.9,2724.2,7.34160486]
[1763813971893,0.4692,2724.8,2724.4,0.125]
[1763813972048,0.9296,2724.8,2724.4,0.125]
[1763813972435,0.4692,2724.8,2724.5,0.125]
[1763813972842,0.002,2725.2,2724.5,0.16170398]
[1763813973072,0.002,2725.2,2724.5,0.125]
[1763813973282,0.002,2725.2,2724.5,1.03199264]
[1763813974461,0.002,2725.2,2724.7,0.90699264]
[1763813974781,0.002,2725.2,2724.8,0.125]
[1763813975358,0.002,2725.2,2724.9,0.03669859]
[1763813975565,0.002,2725.2,2724.8,0.125]
[1763813975757,0.4537,2725.2,2724.8,0.125]
[1763813976276,0.002,2725.2,2724.8,0.125]
[1763813976444,0.002,2725.2,2725.0,0.90699264]
[1763813976646,0.002,2725.2,2725.1,0.125]
[1763813976845,0.002,2725.2,2725.1,6.08894655]
[1763813977047,0.9613,2725.2,2723.8,0.0629]
[1763813977278,0.9593,2725.1,2724.3,0.90699264]
[1763813977482,0.4955,2725.0,2724.2,11.13738361]
[1763813977690,0.4955,2725.0,2724.3,0.90699264]
[1763813977890,0.1847,2724.9,2724.3,1.03199264]
[1763813978247,0.6802,2724.9,2724.3,1.03199264]
[1763813978446,0.6802,2724.9,2724.5,0.90699264]
[1763813978949,0.002,2725.2,2724.8,5.05695391]
[1763813979148,0.002,2725.2,2724.9,1.03199264]
[1763813979575,0.4955,2725.1,2725.0,0.125]
[1763813979769,0.002,2725.2,2725.0,0.125]
[1763813980156,0.002,2725.2,2725.1,0.0629]
[1763813980570,0.002,2725.2,2725.1,4.63948274]
[1763813980782,0.002,2725.2,2725.1,4.67617864]
[1763813981090,0.002,2725.2,2725.1,4.63948274]
[1763813981546,0.4658,2725.2,2725.1,4.57658274]
[1763813981751,0.4658,2725.2,2725.1,4.70158274]
[1763813981752,0.9613,2725.2,2725.1,4.70158274]
[1763813982062,0.002,2725.2,2725.1,4.76448274]
[1763813982278,0.002,2725.2,2725.1,4.70158274]
[1763813982877,0.4658,2725.2,2725.1,4.70158274]
[1763813983046,0.002,2725.2,2725.1,4.70158274]
[1763813983553,0.002,2725.2,2725.1,4.57658274]
[1763813983894,0.9613,2725.2,2724.5,7.34079646]
[1763813984188,0.4975,2725.2,2724.6,1.03199264]
[1763813984351,0.4955,2725.1,2724.6,1.03199264]
[1763813984552,0.4955,2725.1,2724.8,0.90699264]
[1763813984778,0.4955,2725.1,2724.9,0.125]
[1763813985148,0.4638,2725.0,2724.9,0.125]
[1763813985554,0.9593,2725.0,2724.9,0.125]
[1763813986090,0.9593,2725.0,2724.4,4.99405391]
[1763813986091,0.9593,2725.0,2724.4,7.34094755]
[1763813986249,0.6485,2724.5,2724.3,3.67064093]
[1763813986454,0.6485,2724.5,2724.1,0.001]
[1763813986455,0.4638,2724.2,2724.1,0.001]
[1763813986665,0.4638,2724.2,2724.1,0.126]
[1763813986869,0.9593,2724.2,2724.1,0.126]
[1763813989049,0.9593,2724.2,2724.1,3.79693719]
[1763813989248,0.6802,2724.5,2724.1,7.46787438]
[1763813989850,0.1847,2724.5,2724.1,3.79693719]
[1763813990053,0.4638,2724.2,2724.1,0.001]
[1763813990281,0.4638,2724.2,2724.1,3.79693719]
[1763813990483,0.9593,2724.2,2724.1,3.79693719]
[1763813991052,0.9593,2724.2,2724.1,0.126]
[1763813991248,0.9593,2724.2,2724.1,3.79693719]
[1763813992059,0.4638,2724.2,2724.1,3.79693719]
[1763813992257,0.6802,2724.5,2724.1,7.46787438]
[1763813992485,0.4955,2724.4,2724.1,7.46787438]
[1763813992898,0.4638,2724.2,2724.1,0.001]
[1763813993195,0.4638,2724.2,2724.1,0.126]
[1763813993494,0.9593,2724.2,2724.1,0.126]
[1763813994191,0.9593,2724.2,2724.1,3.79693719]
[1763813995297,0.1847,2724.8,2724.1,0.126]
[1763813995499,0.1847,2724.8,2724.1,7.46775775]
[1763813995694,0.4955,2724.7,2724.1,7.46775775]
[1763813996304,0.4955,2724.7,2724.2,4.75327411]
[1763813996599,0.4955,2724.7,2724.2,4.71656609]
[1763813997164,0.4955,2724.7,2724.3,0.125]
[1763813997369,0.1847,2724.8,2724.4,7.34106592]
[1763813997568,0.6802,2724.8,2724.4,7.34106592]
[1763813998574,0.1847,2724.8,2724.4,11.01159888]
[1763813998783,0.1847,2724.8,2724.4,7.34106592]
[1763814000290,0.1847,2724.8,2724.6,4.71656609]
[1763814000471,0.002,2725.2,2724.3,0.90699264]
[1763814000472,0.4638,2724.5,2724.3,0.90699264]
[1763814000668,0.4638,2724.4,2724.3,0.90699264]
[1763814000896,0.9593,2724.4,2724.3,1.03199264]
[1763814001205,0.1847,2724.9,2724.3,1.09489264]
[1763814001509,0.6802,2724.9,2724.3,1.09489264]
[1763814001817,0.6802,2724.9,2724.3,8.37322396]
[1763814001973,0.4955,2724.8,2724.3,8.37322396]
[1763814002889,0.4955,2724.8,2724.3,4.57755627]
[1763814002890,0.4638,2724.4,2724.3,4.57755627]
[1763814003130,0.4638,2724.4,2724.3,4.70266033]
[1763814003426,0.9593,2724.4,2724.3,4.70266033]
[1763814003722,0.9593,2724.4,2724.3,3.79566769]
[1763814004124,0.9593,2724.4,2724.1,0.001]
[1763814004439,0.4638,2724.2,2724.1,3.67187055]
[1763814004725,0.4638,2724.2,2724.1,3.79693719]
[1763814005024,0.9593,2724.2,2724.1,3.79693719]
[1763814005226,0.9593,2724.2,2724.1,0.126]
[1763814005433,0.9593,2724.2,2724.1,3.79693719]
[1763814005928,0.9593,2724.2,2724.1,0.126]
[1763814006830,0.9593,2724.2,2724.1,0.001]
[1763814007031,0.9593,2724.2,2724.1,0.126]
[1763814007395,0.9593,2724.2,2724.1,3.79693719]
[1763814007695,0.9593,2724.2,2724.1,0.126]
[1763814009095,0.9593,2724.2,2724.1,0.001]
[1763814009527,0.9593,2724.2,2724.0,0.001]
[1763814009729,0.44201782,2724.8,2723.5,0.001]
[1763814009730,0.649,2723.9,2723.5,0.001]
[1763814009906,0.4604,2723.7,2723.5,0.001]
[1763814010109,0.4604,2723.7,2723.6,0.126]
[1763814010312,0.9407,2723.7,2723.6,0.001]
[1763814010531,0.9407,2723.7,2723.6,0.126]
[1763814011249,1.346204,2723.7,2723.6,0.001]
[1763814011560,0.405504,2723.6,2722.9,0.001]
[1763814011745,0.405504,2723.3,2722.0,0.001]
[1763814011945,0.1886,2722.7,2722.0,0.90799264]
[1763814012147,0.649,2722.7,2722.6,0.126]
[1763814012445,1.1293,2722.7,2722.6,0.126]
[1763814012745,1.1293,2722.7,2722.6,0.001]
[1763814012959,1.1293,2722.7,2722.6,0.126]
[1763814013271,1.534804,2722.7,2722.6,0.126]
[1763814013563,0.405504,2722.3,2722.2,0.125]
[1763814014102,1.346204,2722.3,2722.0,0.001]
[1763814014230,0.4604,2722.1,2722.0,0.126]
[1763814014760,0.9407,2722.1,2722.0,0.126]
[1763814015133,0.4803,2722.4,2722.0,3.79976928]
[1763814015444,0.4803,2722.4,2722.0,3.79975705]
[1763814015630,0.1886,2722.7,2722.1,0.03673634]
[1763814015833,0.03651382,2724.4,2722.1,0.03673634]
[1763814015834,0.1886,2722.9,2722.4,4.71656609]
[1763814016053,0.4803,2722.8,2722.4,3.67319984]
[1763814016355,0.4604,2722.5,2722.2,4.58043745]
[1763814016660,0.4604,2722.5,2722.3,0.125]